fUSD/lending_fUSD_20250301
["ID","MTS","AMOUNT","RATE_DAILY","PERIOD"]
[354922356,1740819032157,-2219.00664474,0.000149,2]
[354922357,1740819032168,-178.15566868,0.000149,2]
[354922358,1740819032178,-1197.91149444,0.000149,2]
[354922359,1740819032187,-150.0,0.00014999,2]
[354922360,1740819032197,-153.85,0.00014999,2]
[354922361,1740819032207,-300.0,0.00014999,2]
[354922362,1740819032223,-11257.15130451,0.00015,2]
[354922363,1740819032235,-175216.67851343,0.00015,2]
[354922364,1740819032247,-798.76112426,0.00015,2]
[354922889,1740819037946,-8538.7,0.00015,2]
[354923097,1740819039887,-775.5981233,0.00015,2]
[354923166,1740819040539,-2416.04015082,0.00015,2]
[354923168,1740819040554,-8496.342954,0.00015,2]
[354923171,1740819040569,-7422.12890768,0.00015,2]
[354923184,1740819040688,-455.78372172,0.00015,2]
[354923192,1740819040752,-100808.46293924,0.00015,2]
[354923194,1740819040763,-250.53431,0.00015,2]
[354923196,1740819040773,-250.0,0.000151,2]
[354923198,1740819040783,-2269.9730392,0.0001515,2]
[354923200,1740819040794,-10393.6280068,0.0001516,2]
[354923202,1740819040803,-225.0,0.000153,2]
[354923204,1740819040814,-410.37466481,0.00015442,2]
[354923206,1740819040824,-150.0,0.00016,2]
[354923208,1740819040833,-255.0,0.00016031,2]
[354923210,1740819040843,-150.0,0.00016368,2]
[354923212,1740819040852,-450.0,0.00016368,2]
[354923214,1740819040862,-150.0,0.00016368,2]
[354923217,1740819040873,-450.0,0.00016368,2]
[354923219,1740819040883,-150.0,0.0001639,2]
[354923221,1740819040894,-450.0,0.0001639,2]
[354923223,1740819040904,-420.0,0.00016416,2]
[354923225,1740819040914,-152.72,0.00016483,2]
[354923227,1740819040924,-1197.91149443,0.00016886,2]
[354923229,1740819040934,-350.0,0.00017,2]
[354923231,1740819040944,-433.0,0.00017253,2]
[354923233,1740819040954,-180.0,0.00017966,2]
[354923235,1740819040965,-607.0,0.00018564,2]
[354923237,1740819040976,-743.6,0.00018573,2]
[354923239,1740819040986,-199.0,0.00018603,2]
[354923242,1740819040996,-1197.91149443,0.00018872,2]
[354923244,1740819041006,-400.0,0.00019,2]
[354923246,1740819041016,-14517.38989894,0.000195,2]
[354923248,1740819041026,-3296.58635684,0.0001961,2]
[354923250,1740819041037,-4708.46531263,0.000199,3]
[354923252,1740819041048,-256.698,0.000199,2]
[354923254,1740819041058,-256.698,0.000199,2]
[354923256,1740819041069,-256.698,0.000199,2]
[354923258,1740819041079,-256.698,0.000199,2]
[354923260,1740819041089,-256.698,0.000199,2]
[354923262,1740819041099,-256.698,0.000199,2]
[354923264,1740819041109,-256.698,0.000199,2]
[354923266,1740819041126,-256.698,0.000199,2]
[354923268,1740819041140,-256.698,0.000199,2]
[354923271,1740819041151,-256.698,0.000199,2]
[354923273,1740819041161,-812.90627167,0.000199,2]
[354923275,1740819041170,-812.90627161,0.000199,2]
[354923277,1740819041181,-812.90627161,0.000199,2]
[354923279,1740819041196,-812.90627161,0.000199,2]
[354923281,1740819041206,-812.90627161,0.000199,2]
[354923283,1740819041216,-2316.72229342,0.00019999,2]
[354923286,1740819041230,-250.53431,0.0002,2]
[354923288,1740819041240,-200.0,0.0002013,2]
[354923290,1740819041250,-250.0,0.0002023,2]
[354923292,1740819041260,-1801.84,0.00020246,2]
[354923294,1740819041271,-200.0,0.00020308,2]
[354923296,1740819041282,-3989.72,0.00020313,2]
[354923298,1740819041292,-1593.1,0.00020333,2]
[354923300,1740819041304,-200.0,0.00020492,2]
[354923302,1740819041314,-274.69,0.00020557,2]
[354923304,1740819041325,-208.86,0.0002059,2]
[354923307,1740819041336,-1000.0,0.00020674,2]
[354923308,1740819041347,-165.77,0.00020726,2]
[354923311,1740819041357,-1598.66,0.00020749,2]
[354923313,1740819041369,-190.64,0.00020788,2]
[354923315,1740819041380,-150.0,0.00020792,2]
[354923317,1740819041391,-313.71295704,0.00020793,2]
[354923319,1740819041402,-1276.0,0.00020799,2]
[354923321,1740819041411,-2030.0,0.00020799,2]
[354923323,1740819041421,-150.0,0.00020799,2]
[354923325,1740819041431,-1449.73780946,0.00020799,2]
[354923381,1740819044618,-132.26219054,0.00020799,2]
[354923382,1740819044628,-570.0,0.00020799,2]
[354923383,1740819044638,-640.0,0.00020799,2]
[354923384,1740819044647,-785.0,0.00020799,2]
[354923385,1740819044657,-908.0,0.00020799,2]
[354923386,1740819044666,-273.00871984,0.00020799,2]
[354923387,1740819044690,-266.99128016,0.00020799,2]
[354923388,1740819044700,-1268.0,0.00020799,2]
[354923389,1740819044710,-3137.51879992,0.00020799,2]
[354923390,1740819044721,-600.10646135,0.00020799,2]
[354923391,1740819044745,-300.37473873,0.00020799,2]
[354923392,1740819044754,-150.0,0.00020799,2]
[354923393,1740819044764,-3926.0,0.00020799,2]
[354923394,1740819044773,-1011.0,0.00020799,2]
[354923395,1740819044783,-1112.0,0.00020799,2]
[354923396,1740819044792,-225.0,0.000208,2]
[354923397,1740819044802,-5380.04,0.00020813,2]
[354923398,1740819044811,-743.6,0.00020836,2]
[354923399,1740819044821,-1197.91149443,0.00020859,2]
[354923400,1740819044831,-23900.0,0.00020875,2]
[354923401,1740819044840,-787.61,0.00020893,2]
[354923402,1740819044849,-812.90627161,0.000209,2]
[354923403,1740819044859,-152.77,0.00020924,2]
[354923404,1740819044868,-150.0,0.00020924,7]
[354923405,1740819044878,-450.0,0.00021,2]
[354923406,1740819044887,-209.41,0.00021057,2]
[354923407,1740819044896,-2229.0,0.000212,2]
[354923408,1740819044906,-152.77,0.00021223,2]
[354923409,1740819044915,-152.77,0.00021522,2]
[354923410,1740819044924,-163.1,0.00021673,2]
[354923411,1740819044933,-152.77,0.00021821,2]
[354923412,1740819044942,-812.90627161,0.000219,3]
[354923413,1740819044952,-174.29,0.00021918,2]
[354923414,1740819044961,-387.0,0.00022,2]
[354923415,1740819044970,-152.77,0.0002212,2]
[354923416,1740819044981,-161.27,0.00022148,2]
[354923417,1740819044990,-387.0,0.00022192,2]
[354923418,1740819045000,-152.77,0.00022419,2]
[354923419,1740819045009,-173.8,0.00022554,2]
[354923420,1740819045019,-151.635151,0.00022655,7]
[354923421,1740819045028,-173.8,0.00022673,2]
[354923422,1740819045038,-152.77,0.00022718,2]
[354923423,1740819045047,-173.8,0.00022791,2]
[354923424,1740819045056,-1197.91149443,0.00022845,2]
[354923425,1740819045066,-200.0,0.00022884,2]
[354923426,1740819045075,-812.90627161,0.000229,3]
[354923427,1740819045084,-173.8,0.0002291,2]
[354923428,1740819045094,-500.0,0.00023,2]
[354923429,1740819045103,-1000.0,0.00023,2]
[354923430,1740819045113,-387.0,0.00023014,2]
[354923431,1740819045122,-152.77,0.00023017,2]
[354923432,1740819045131,-173.8,0.00023029,2]
[354923433,1740819045141,-743.6,0.000231,2]
[354923434,1740819045150,-173.8,0.00023147,2]
[354923435,1740819045160,-1000.0,0.00023258,2]
[354923436,1740819045169,-173.8,0.00023266,2]
[354923437,1740819045178,-173.8,0.00023385,2]
[354923438,1740819045190,-190.64,0.00023386,2]
[354923439,1740819045199,-163.1,0.00023462,2]
[354923440,1740819045208,-173.8,0.00023504,2]
[354923441,1740819045219,-173.8,0.00023622,2]
[354923442,1740819045228,-173.8,0.00023741,2]
[354923443,1740819045239,-1276.0,0.00023799,2]
[354923444,1740819045249,-2028.0,0.00023799,2]
[354923445,1740819045259,-150.0,0.00023799,2]
[354923446,1740819045268,-417.097,0.00023799,2]
[354923447,1740819045278,-568.0,0.00023799,2]
[354923448,1740819045288,-637.0,0.00023799,2]
[354923449,1740819045299,-244.469,0.00023799,2]
[354923450,1740819045310,-1263.001,0.00023799,2]
[354923451,1740819045319,-1864.034,0.00023799,2]
[354923452,1740819045329,-150.0,0.00023799,2]
[354923453,1740819045339,-3920.0,0.00023799,2]
[354923454,1740819045350,-896.533,0.00023799,2]
[354923455,1740819045359,-367.116,0.00023799,2]
[354923456,1740819045369,-239.78,0.00023836,2]
[354923457,1740819045380,-173.8,0.0002386,2]
[354923458,1740819045390,-812.90627161,0.000239,3]
[354923459,1740819045400,-173.8,0.00023978,2]
[354923460,1740819045409,-1000.0,0.00024,2]
[354923461,1740819045418,-173.8,0.00024097,2]
[354923462,1740819045428,-387.0,0.00024164,2]
[354923463,1740819045437,-173.8,0.00024216,2]
[354923464,1740819045447,-173.8,0.00024334,2]
[354923465,1740819045456,-173.8,0.00024453,2]
[354923466,1740819045465,-178.15566866,0.00024523,2]
[354923467,1740819045475,-173.8,0.00024572,2]
[354923468,1740819045486,-1000.0,0.00024658,2]
[354923469,1740819045495,-173.8,0.00024691,2]
[354923470,1740819045504,-152.72,0.00024725,2]
[354923471,1740819045513,-173.8,0.00024809,2]
[354923472,1740819045522,-1197.91149443,0.00024831,2]
[354923473,1740819045532,-812.90627161,0.000249,4]
[354923474,1740819045541,-204.36,0.00025,2]
[354923475,1740819045550,-550.0,0.00025,2]
[354923476,1740819045561,-1000.0,0.00025,2]
[354923477,1740819045570,-94277.06,0.00025,2]
[354923478,1740819045580,-151.0,0.00025,7]
[354923479,1740819045589,-154.321311,0.00025,7]
[354923480,1740819045598,-151.0,0.00025,7]
[354923481,1740819045608,-152.31877,0.00025,7]
[354923482,1740819045618,-157.116967,0.00025,7]
[354923483,1740819045627,-151.086864,0.00025,7]
[354923484,1740819045637,-151.0,0.00025,7]
[354923485,1740819045646,-153.168198,0.00025,7]
[354923486,1740819045656,-159.900294,0.00025,7]
[354923487,1740819045665,-250.53432,0.00025,2]
[354923488,1740819045674,-597.253,0.00025,8]
[354923489,1740819045684,-163.1,0.0002525,2]
[354923490,1740819045694,-743.6,0.00025364,2]
[354923491,1740819045703,-2000.0,0.00025677,4]
[354923492,1740819045712,-387.0,0.00025775,2]
[354923493,1740819045722,-1000.0,0.00025843,2]
[354923494,1740819045732,-169.718971,0.000259,2]
[354923495,1740819045741,-812.90627161,0.000259,4]
[354923496,1740819045751,-165.77,0.00025907,2]
[354923497,1740819045760,-190.64,0.00025985,120]
[354923498,1740819045769,-1000.0,0.00026,2]
[354923499,1740819045779,-1197.91149443,0.00026817,2]
[354923500,1740819045789,-812.90627161,0.000269,4]
[354923502,1740819045798,-600.0,0.00027,2]
[354923504,1740819045808,-160.15904,0.00027,2]
[354923506,1740819045817,-160.15904,0.00027339,2]
[354923508,1740819045827,-387.0,0.00027386,2]
[354923512,1740819046043,-1000.0,0.00027397,2]
[354923513,1740819046055,-387.0,0.00027616,2]
[354923514,1740819046064,-743.6,0.00027628,2]
[354923515,1740819046075,-160.15904,0.00027656,2]
[354923516,1740819046085,-160.15904,0.00027656,2]
[354923517,1740819046094,-160.15904,0.00027656,5]
[354923518,1740819046104,-160.15904,0.00027656,5]
[354923519,1740819046114,-160.0,0.00027656,5]
[354923520,1740819046124,-160.15904,0.00027656,5]
[354923521,1740819046133,-160.15904,0.00027656,5]
[354923522,1740819046143,-159.0,0.00027656,5]
[354923523,1740819046153,-160.15904,0.00027656,3]
[354923524,1740819046162,-160.15904,0.00027656,5]
[354923525,1740819046172,-160.15904,0.00027656,2]
[354923526,1740819046182,-160.111136,0.00027656,5]
[354923527,1740819046192,-812.90627161,0.000279,4]
[354923528,1740819046201,-1000.0,0.00028,120]
[354923529,1740819046212,-500.0,0.00028,30]
[354923530,1740819046222,-500.0,0.00028,30]
[354923531,1740819046233,-524.55065536,0.00028,30]
[354923532,1740819046243,-513.12844909,0.00028,30]
[354923533,1740819046253,-151.0,0.000283,7]
[354923534,1740819046263,-151.0,0.000283,7]
[354923535,1740819046273,-151.56218722,0.000284,2]
[354923536,1740819046283,-166.22661307,0.000284,2]
[354923537,1740819046293,-12816.54803083,0.000284,2]
[354923538,1740819046305,-178.38751728,0.000284,2]
[354923539,1740819046315,-179.47084422,0.000284,2]
[354923540,1740819046325,-425.66048332,0.000284,2]
[354923541,1740819046335,-195.98649052,0.000284,2]
[354923542,1740819046345,-1000.0,0.00028427,2]
[354923543,1740819046355,-1593.1,0.00028467,2]
[354923544,1740819046364,-160.15904,0.00028473,5]
[354923545,1740819046375,-223.63,0.00028489,2]
[354923546,1740819046387,-223.63,0.0002849,2]
[354923547,1740819046396,-223.63,0.0002849,2]
[354923548,1740819046406,-223.63,0.0002849,2]
[354923549,1740819046416,-223.63,0.0002849,2]
[354923550,1740819046426,-223.63,0.0002849,2]
[354923551,1740819046436,-223.63,0.0002849,2]
[354923552,1740819046446,-223.63,0.0002849,2]
[354923553,1740819046456,-223.63,0.0002849,2]
[354923554,1740819046466,-223.63,0.0002849,2]
[354923555,1740819046477,-223.63,0.0002849,2]
[354923556,1740819046487,-223.63,0.0002849,2]
[354923558,1740819046497,-223.63,0.0002849,2]
[354923559,1740819046506,-223.63,0.0002849,2]
[354923561,1740819046516,-223.63,0.0002849,2]
[354923562,1740819046526,-223.63,0.0002849,2]
[354923563,1740819046537,-223.63,0.0002849,2]
[354923564,1740819046546,-223.63,0.0002849,2]
[354923565,1740819046556,-223.63,0.0002849,2]
[354923566,1740819046565,-223.63,0.0002849,2]
[354923567,1740819046575,-223.63,0.0002849,2]
[354923568,1740819046585,-223.63,0.0002849,2]
[354923569,1740819046595,-223.63,0.0002849,2]
[354923570,1740819046605,-223.63,0.0002849,2]
[354923571,1740819046614,-223.63,0.0002849,2]
[354923572,1740819046624,-223.63,0.0002849,2]
[354923573,1740819046635,-223.63,0.0002849,2]
[354923574,1740819046645,-223.63,0.0002849,2]
[354923575,1740819046654,-223.63,0.0002849,2]
[354923576,1740819046664,-223.63,0.0002849,2]
[354923577,1740819046674,-223.63,0.0002849,2]
[354923578,1740819046683,-223.63,0.0002849,2]
[354923579,1740819046693,-223.63,0.0002849,2]
[354923580,1740819046702,-223.63,0.0002849,2]
[354923581,1740819046712,-223.63,0.0002849,2]
[354923582,1740819046722,-151.0,0.00028499,7]
[354923583,1740819046732,-185.979101,0.00028499,7]
[354923584,1740819046741,-3473.30014194,0.000285,15]
[354923585,1740819046751,-245927.61282972,0.000285,11]
[354923586,1740819056460,250.0,0.00013,2]
[354923590,1740819135021,524.55065536,0.0002302,30]
[354923591,1740819567351,2555.3642,0.000148,2]
[354923592,1740819590845,5433.19127219,0.0001483,2]
[354923667,1740820195522,-286.40825605,0.00014899,5]
[354923668,1740820195551,-150.0,0.00014899,2]
[354923669,1740820195579,-3391.43238538,0.000149,2]
[354923670,1740820201121,4889.87214498,0.00014825,2]
[354923672,1740820232145,-300.0,0.00014899,2]
[354923673,1740820232155,-2794.05519288,0.000149,2]
[354923674,1740820232195,-493.78059,0.000149,2]
[354923675,1740820232207,-1032.43087862,0.000149,2]
[354923676,1740820232249,-2468.72145636,0.000149,2]
[354923677,1740820232354,-2112.45730518,0.000149,2]
[354923678,1740820232406,-5458.6877731,0.000149,2]
[354923679,1740820232419,-838.4778,0.000149,2]
[354923696,1740820237992,-10991.17998013,0.000149,2]
[354923697,1740820238108,-996.48688223,0.000149,2]
[354923740,1740820240128,-1283.46946785,0.000149,2]
[354923750,1740820243265,-137810.60348827,0.000149,2]
[354923751,1740820243275,-150.0,0.00014913,2]
[354923752,1740820243285,-300.0,0.00015,2]
[354923753,1740820243295,-150.0,0.00015643,2]
[354923754,1740820243304,-150.0,0.0001639,2]
[354923755,1740820243314,-4889.87214496,0.0001682,2]
[354923756,1740820243324,-350.0,0.00017,2]
[354923757,1740820243333,-152.72,0.00017599,2]
[354923758,1740820243343,-500.0,0.00018603,2]
[354923759,1740820243353,-4889.87214496,0.00018814,2]
[354923760,1740820243362,-400.0,0.00019,2]
[354923761,1740820243373,-677.42189325,0.000195,2]
[354923762,1740820243382,-677.421893,0.000195,2]
[354923763,1740820243392,-677.421893,0.000195,2]
[354923764,1740820243401,-3926.0,0.00019538,2]
[354923765,1740820243410,-1011.0,0.00019538,2]
[354923766,1740820243420,-150.0,0.00019538,2]
[354923767,1740820243429,-1112.0,0.00019538,2]
[354923769,1740820243439,-677.421893,0.00019797,2]
[354923770,1740820243448,-160.15904,0.000199,2]
[354923771,1740820243457,-160.15904,0.000199,2]
[354923772,1740820243467,-160.15904,0.000199,2]
[354923773,1740820243476,-160.15904,0.000199,2]
[354923774,1740820243485,-160.15904,0.000199,2]
[354923775,1740820243495,-160.0,0.000199,2]
[354923776,1740820243504,-840.55,0.00020028,2]
[354923777,1740820243513,-677.421893,0.00020762,2]
[354923778,1740820243523,-175.419,0.00020799,2]
[354923779,1740820243532,-2663.0,0.000208,2]
[354923780,1740820243542,-4889.87214496,0.00020809,2]
[354923782,1740820243551,-450.0,0.00021,2]
[354923783,1740820243561,-677.421893,0.00021728,3]
[354923784,1740820243570,-200.0,0.00021779,2]
[354923785,1740820243581,-242.73,0.00021887,2]
[354923786,1740820243590,-174.29,0.00021918,2]
[354923787,1740820243600,-150.0,0.00021952,2]
[354923789,1740820243609,-250.0,0.00021963,2]
[354923791,1740820243618,-242.73,0.00022003,2]
[354923792,1740820243628,-796.55,0.00022027,2]
[354923794,1740820243637,-242.73,0.00022118,2]
[354923796,1740820243647,-1276.0,0.00022148,2]
[354923798,1740820243657,-2028.0,0.00022148,2]
[354923799,1740820243667,-637.0,0.00022148,2]
[354923800,1740820243678,-417.097,0.00022148,2]
[354923801,1740820243691,-150.0,0.00022148,2]
[354923802,1740820243701,-568.0,0.00022148,2]
[354923803,1740820243711,-244.469,0.00022148,2]
[354923804,1740820243722,-498.0,0.00022148,2]
[354923805,1740820243732,-539.0,0.00022148,2]
[354923806,1740820243742,-1268.0,0.00022148,2]
[354923807,1740820243752,-891.0,0.00022148,2]
[354923808,1740820243763,-4038.0,0.00022148,2]
[354923809,1740820243774,-242.73,0.00022233,2]
[354923810,1740820243783,-840.55,0.00022292,2]
[354923811,1740820243794,-242.73,0.00022348,2]
[354923812,1740820243804,-242.73,0.00022463,2]
[354923813,1740820243813,-3926.0,0.00022538,2]
[354923814,1740820243823,-896.533,0.00022538,2]
[354923815,1740820243833,-150.0,0.00022538,2]
[354923816,1740820243843,-367.116,0.00022538,2]
[354923817,1740820243853,-242.73,0.00022579,2]
[354923818,1740820243863,-163.1,0.00022652,2]
[354923819,1740820243872,-677.421893,0.00022693,3]
[354923820,1740820243882,-242.73,0.00022694,2]
[354923821,1740820243891,-318.0,0.0002272,2]
[354923822,1740820243901,-4889.87214496,0.00022803,2]
[354923823,1740820243910,-242.73,0.00022809,2]
[354923824,1740820243920,-242.73,0.00022924,2]
[354923825,1740820243929,-500.0,0.00023,2]
[354923826,1740820243938,-242.73,0.00023039,2]
[354923827,1740820243948,-242.73,0.00023155,2]
[354923828,1740820243958,-242.73,0.0002327,2]
[354923829,1740820243968,-161.27,0.00023337,2]
[354923830,1740820243978,-242.73,0.00023385,2]
[354923831,1740820243988,-242.73,0.000235,2]
[354923832,1740820243999,-242.73,0.00023615,2]
[354923833,1740820244010,-677.421893,0.00023659,3]
[354923834,1740820244020,-242.73,0.00023731,2]
[354923835,1740820244030,-150.0,0.00023799,2]
[354923836,1740820244040,-239.78,0.00023836,2]
[354923837,1740820244050,-242.73,0.00023846,2]
[354923838,1740820244060,-318.0,0.000239,2]
[354923839,1740820244069,-242.73,0.00023961,2]
[354923840,1740820244080,-242.73,0.00024076,2]
[354923841,1740820244089,-150.0,0.00024346,7]
[354923842,1740820244099,-23900.0,0.00024346,2]
[354923843,1740820244111,-787.61,0.00024372,2]
[354923844,1740820244120,-163.1,0.00024521,2]
[354923845,1740820244130,-840.55,0.00024556,2]
[354923846,1740820244140,-196.9,0.00024582,2]
[354923847,1740820244150,-677.421893,0.00024624,3]
[354923848,1740820244159,-4889.87214496,0.00024798,2]
[354923849,1740820244169,-178.15566866,0.000248,2]
[354923850,1740820244179,-684.349,0.00024831,8]
[354923851,1740820244188,-165.77,0.00024837,2]
[354923852,1740820244198,-217.97537401,0.00024899,2]
[354923853,1740820244208,-94277.0694117,0.000249,2]
[354923854,1740820244218,-4639.16101108,0.000249,2]
[354923855,1740820244227,-5380.04,0.00024998,2]
[354923856,1740820244237,-550.0,0.00025,2]
[354923857,1740820244247,-204.36,0.00025,2]
[354923858,1740820244257,-21418.11212396,0.00025,2]
[354923859,1740820244267,-318.0,0.0002507,2]
[354923860,1740820244490,-1190.333,0.00025148,2]
[354923861,1740820244507,-2153.409,0.00025148,2]
[354923862,1740820244516,-1000.0,0.000252,2]
[354923863,1740820244526,-200.0,0.00025281,2]
[354923864,1740820244535,-1437.894,0.00025538,2]
[354923865,1740820244545,-150.0,0.00025538,2]
[354923866,1740820244554,-677.421893,0.0002559,4]
[354923867,1740820244564,-4639.16101102,0.00025775,2]
[354923868,1740820244574,-318.0,0.0002624,2]
[354923869,1740820244583,-163.1,0.0002639,2]
[354923870,1740820244593,-677.421893,0.00026555,4]
[354923871,1740820244602,-4639.16101102,0.0002665,2]
[354923872,1740820244612,-4889.87214496,0.00026792,2]
[354923873,1740820244621,-150.0,0.00026799,2]
[354923874,1740820244631,-840.55,0.00026819,2]
[354923875,1740820244641,-600.0,0.00027,2]
[354923876,1740820244650,-387.0,0.00027,2]
[354923877,1740820244660,-200.0,0.00027027,2]
[354923878,1740820244670,-1000.0,0.00027038,2]
[354923879,1740820244680,-318.0,0.0002741,2]
[354923880,1740820244693,-677.421893,0.00027521,4]
[354923881,1740820244703,-4639.16101102,0.00027525,2]
[354923882,1740820244713,-387.0,0.00027671,2]
[354923883,1740820244724,-160.0,0.000277,5]
[354923884,1740820244734,-159.0,0.000277,5]
[354923885,1740820244744,-160.15904,0.00027744,2]
[354923886,1740820244755,-160.0,0.00027744,5]
[354923887,1740820244767,-160.15904,0.00027744,5]
[354923888,1740820244777,-160.111136,0.00027744,5]
[354923889,1740820244787,-160.15904,0.00027744,5]
[354923890,1740820244796,-160.15904,0.00027744,5]
[354923891,1740820244806,-160.15904,0.00027744,5]
[354923892,1740820244815,-160.15904,0.00027744,5]
[354923893,1740820244824,-221.4238799,0.0002792,4]
[354923894,1740820244834,-2000.0,0.00027945,4]
[354923895,1740820244843,-500.0,0.00028,30]
[354923896,1740820244853,-500.0,0.00028,30]
[354923897,1740820244863,-513.12844909,0.00028,30]
[354923898,1740820244873,-200.39318472,0.0002806,30]
[354923899,1740820244882,-167.02287,0.0002821,2]
[354923900,1740820244893,-200.0,0.00028262,2]
[354923901,1740820244902,-500.0,0.00028348,2]
[354923902,1740820244911,-500.0,0.00028348,2]
[354923903,1740820244921,-500.0,0.00028348,2]
[354923904,1740820244931,-500.0,0.00028348,2]
[354923905,1740820244941,-500.0,0.00028348,2]
[354923906,1740820244950,-466.1413,0.00028348,2]
[354923907,1740820244960,-1000.0,0.0002835,2]
[354923908,1740820244969,-313.71295702,0.00028386,2]
[354923909,1740820244979,-193.74946415,0.000284,2]
[354923910,1740820244988,-166.22661307,0.000284,2]
[354923911,1740820244998,-425.66048332,0.000284,2]
[354923912,1740820245007,-172.63426761,0.000284,2]
[354923913,1740820245016,-178.38751728,0.000284,2]
[354923914,1740820245026,-12816.54803083,0.000284,2]
[354923915,1740820245035,-189.2559354,0.000284,2]
[354923916,1740820245044,-195.98649052,0.000284,2]
[354923917,1740820245054,-4639.16101102,0.000284,2]
[354923918,1740820245063,-677.421893,0.00028486,5]
[354923919,1740820245072,-223.63,0.0002849,2]
[354923920,1740820245082,-223.63,0.0002849,2]
[354923921,1740820245092,-223.63,0.0002849,2]
[354923922,1740820245102,-223.63,0.0002849,2]
[354923923,1740820245111,-223.63,0.0002849,2]
[354923924,1740820245121,-223.63,0.0002849,2]
[354923925,1740820245131,-223.63,0.0002849,2]
[354923926,1740820245140,-223.63,0.0002849,2]
[354923927,1740820245150,-223.63,0.0002849,2]
[354923928,1740820245160,-223.63,0.0002849,2]
[354923929,1740820245169,-223.63,0.0002849,2]
[354923930,1740820245179,-223.63,0.0002849,2]
[354923931,1740820245188,-223.63,0.0002849,2]
[354923932,1740820245198,-223.63,0.0002849,2]
[354923933,1740820245207,-223.63,0.0002849,2]
[354923934,1740820245217,-223.63,0.0002849,2]
[354923935,1740820245227,-223.63,0.0002849,2]
[354923936,1740820245236,-223.63,0.0002849,2]
[354923937,1740820245246,-223.63,0.0002849,2]
[354923938,1740820245255,-223.63,0.0002849,2]
[354923939,1740820245264,-223.63,0.0002849,2]
[354923940,1740820245275,-223.63,0.0002849,2]
[354923941,1740820245284,-223.63,0.0002849,2]
[354923942,1740820245294,-223.63,0.0002849,2]
[354923943,1740820245304,-223.63,0.0002849,2]
[354923944,1740820245315,-223.63,0.0002849,2]
[354923945,1740820245325,-223.63,0.0002849,2]
[354923946,1740820245336,-223.63,0.0002849,2]
[354923947,1740820245348,-223.63,0.0002849,2]
[354923948,1740820245358,-223.63,0.0002849,2]
[354923949,1740820245369,-223.63,0.0002849,2]
[354923950,1740820245381,-223.63,0.0002849,2]
[354923951,1740820245391,-223.63,0.0002849,2]
[354923952,1740820245400,-223.63,0.0002849,2]
[354923953,1740820245410,-171.76,0.00028499,2]
[354923954,1740820245420,-288.0,0.00028499,5]
[354923955,1740820245431,-3653.82516034,0.000285,15]
[354923956,1740820245440,-30356.17858354,0.000285,11]
[354923962,1740820246877,-6433.40616929,0.000285,11]
[354923963,1740820246958,-177403.33552642,0.000285,11]
[354923964,1740820246979,-268.73986257,0.000285,11]
[354923966,1740820634683,500.0,0.0002302,30]
[354923968,1740820867532,250.0,0.00013,2]